[Event "*** Titled Tuesday Blitz"]
[Site "Chess.com"]
[Date "2020.04.14"]
[Round "1"]
[White "Trickov"]
[Black "731291"]
[Result "1-0"]
[WhiteElo "2263"]
[BlackElo "2591"]
[TimeControl "180+1"]
[EndTime "10:06:56 PDT"]
[Termination "Trickov won on time"]

1. d4 {[%clk 0:01:46.5]} 1... Nf6 {[%clk 0:02:47.5]} 2. Nf3 {[%clk 0:01:46.7]}
2... e6 {[%clk 0:02:47.1]} 3. g3 {[%clk 0:01:46.6]} 3... b6 {[%clk 0:02:45.2]}
4. Bg2 {[%clk 0:01:47.1]} 4... Bb7 {[%clk 0:02:45.1]} 5. O-O {[%clk 0:01:47.7]}
5... Be7 {[%clk 0:02:45.1]} 6. c4 {[%clk 0:01:48.3]} 6... O-O {[%clk 0:02:45.4]}
7. Nc3 {[%clk 0:01:48.9]} 7... Ne4 {[%clk 0:02:44.7]} 8. d5 {[%clk 0:01:48.2]}
8... Nxc3 {[%clk 0:02:43.4]} 9. bxc3 {[%clk 0:01:48.5]} 9... Bf6 {[%clk
0:02:43.3]} 10. Nd4 {[%clk 0:01:47.9]} 10... Qc8 {[%clk 0:02:39.6]} 11. e4
{[%clk 0:01:44.7]} 11... Na6 {[%clk 0:02:39.1]} 12. f4 {[%clk 0:01:43.8]} 12...
e5 {[%clk 0:02:32.2]} 13. fxe5 {[%clk 0:01:40]} 13... Bxe5 {[%clk 0:02:33.1]}
14. Bf4 {[%clk 0:01:39.8]} 14... d6 {[%clk 0:02:06.4]} 15. Bxe5 {[%clk
0:01:29.5]} 15... dxe5 {[%clk 0:02:07.3]} 16. Nb3 {[%clk 0:01:29.6]} 16... Qd8
{[%clk 0:02:01.9]} 17. Qe2 {[%clk 0:01:24.7]} 17... Qe7 {[%clk 0:01:45.4]} 18.
Qe3 {[%clk 0:01:23.9]} 18... Bc8 {[%clk 0:01:26.3]} 19. a4 {[%clk 0:01:22.6]}
19... Nb8 {[%clk 0:01:11.1]} 20. a5 {[%clk 0:01:22]} 20... Ba6 {[%clk
0:01:06.3]} 21. axb6 {[%clk 0:01:06.2]} 21... axb6 {[%clk 0:01:07.2]} 22. c5
{[%clk 0:01:04.4]} 22... Bxf1 {[%clk 0:01:01.9]} 23. Rxa8 {[%clk 0:01:03.4]}
23... Bxg2 {[%clk 0:01:00.2]} 24. Kxg2 {[%clk 0:01:02.8]} 24... Nd7 {[%clk
0:00:45.4]} 25. Rxf8+ {[%clk 0:01:01.8]} 25... Kxf8 {[%clk 0:00:35.8]} 26. c6
{[%clk 0:01:01.7]} 26... Nf6 {[%clk 0:00:25.7]} 27. c4 {[%clk 0:01:01.4]} 27...
Ne8 {[%clk 0:00:25.8]} 28. c5 {[%clk 0:01:01.1]} 28... bxc5 {[%clk 0:00:25.9]}
29. Qxc5 {[%clk 0:01:00.3]} 29... Nd6 {[%clk 0:00:22.6]} 30. Nd2 {[%clk
0:00:54.9]} 30... g6 {[%clk 0:00:14]} 31. Qb4 {[%clk 0:00:46.7]} 31... f5 {[%clk
0:00:09.2]} 32. exf5 {[%clk 0:00:43.2]} 32... gxf5 {[%clk 0:00:10.1]} 33. Nc4
{[%clk 0:00:42.6]} 33... Nxc4 {[%clk 0:00:07]} 34. Qxc4 {[%clk 0:00:42.2]} 34...
Qa3 {[%clk 0:00:06.4]} 35. Kh3 {[%clk 0:00:34.3]} 1-0

[Event "*** Titled Tuesday Blitz"]
[Site "Chess.com"]
[Date "2020.04.14"]
[Round "1"]
[White "DucksParadise"]
[Black "YumiBear"]
[Result "0-1"]
[WhiteElo "2102"]
[BlackElo "2538"]
[TimeControl "180+1"]
[EndTime "10:06:57 PDT"]
[Termination "YumiBear won by resignation"]

1. d4 {[%clk 0:02:56]} 1... Nf6 {[%clk 0:02:59.7]} 2. c4 {[%clk 0:02:54.2]} 2...
e6 {[%clk 0:03:00]} 3. g3 {[%clk 0:02:53.5]} 3... d5 {[%clk 0:03:00.1]} 4. Bg2
{[%clk 0:02:52.7]} 4... c6 {[%clk 0:03:00.6]} 5. Nf3 {[%clk 0:02:51.4]} 5...
dxc4 {[%clk 0:02:59.9]} 6. Ne5 {[%clk 0:02:51.4]} 6... Nbd7 {[%clk 0:02:57.8]}
7. Nxc4 {[%clk 0:02:49.8]} 7... Nb6 {[%clk 0:02:58.2]} 8. Ne5 {[%clk 0:02:47]}
8... c5 {[%clk 0:02:58.6]} 9. Nf3 {[%clk 0:02:33.3]} 9... cxd4 {[%clk
0:02:53.1]} 10. Qxd4 {[%clk 0:02:24.7]} 10... Qxd4 {[%clk 0:02:33.5]} 11. Nxd4
{[%clk 0:02:25.6]} 11... a6 {[%clk 0:02:19.9]} 12. O-O {[%clk 0:02:10.8]} 12...
Be7 {[%clk 0:02:19.7]} 13. Nc3 {[%clk 0:02:03.5]} 13... O-O {[%clk 0:02:17.9]}
14. Rd1 {[%clk 0:01:29.9]} 14... Rd8 {[%clk 0:02:16.8]} 15. Bg5 {[%clk
0:01:12.1]} 15... h6 {[%clk 0:02:07.9]} 16. Bxf6 {[%clk 0:01:10]} 16... Bxf6
{[%clk 0:02:06.5]} 17. Nb3 {[%clk 0:01:10.9]} 17... Rxd1+ {[%clk 0:01:53.8]} 18.
Rxd1 {[%clk 0:01:11.8]} 18... Nc4 {[%clk 0:01:51.4]} 19. Ne4 {[%clk 0:00:33.3]}
19... Be7 {[%clk 0:01:47.9]} 20. Rc1 {[%clk 0:00:23.8]} 20... Nxb2 {[%clk
0:01:40]} 21. Nec5 {[%clk 0:00:20.6]} 21... Rb8 {[%clk 0:01:18.7]} 22. Rc2
{[%clk 0:00:19.5]} 22... b6 {[%clk 0:00:57.9]} 23. Rxb2 {[%clk 0:00:18.9]} 23...
bxc5 {[%clk 0:00:56.4]} 24. Rc2 {[%clk 0:00:19.3]} 24... Bd7 {[%clk 0:00:41.4]}
25. Rc3 {[%clk 0:00:12.2]} 25... Bb5 {[%clk 0:00:28.6]} 26. Nxc5 {[%clk
0:00:09.3]} 26... Bxe2 {[%clk 0:00:25.7]} 27. Be4 {[%clk 0:00:08.3]} 27... Rc8
{[%clk 0:00:19.1]} 28. Na4 {[%clk 0:00:07]} 28... Rxc3 {[%clk 0:00:19.3]} 29.
Nxc3 {[%clk 0:00:07.9]} 29... Bc4 {[%clk 0:00:19.8]} 30. f4 {[%clk 0:00:06.3]}
30... Bb4 {[%clk 0:00:20]} 0-1

[Event "*** Titled Tuesday Blitz"]
[Site "Chess.com"]
[Date "2020.04.14"]
[Round "1"]
[White "SPEEDSKATER"]
[Black "medalja"]
[Result "1/2-1/2"]
[WhiteElo "2823"]
[BlackElo "2448"]
[TimeControl "180+1"]
[EndTime "10:06:58 PDT"]
[Termination "Game drawn by agreement"]

1. d4 {[%clk 0:02:59.6]} 1... Nf6 {[%clk 0:02:58.7]} 2. c4 {[%clk 0:02:59.5]}
2... e6 {[%clk 0:02:58.9]} 3. Nf3 {[%clk 0:02:58.6]} 3... b6 {[%clk 0:02:58.4]}
4. g3 {[%clk 0:02:58.3]} 4... Ba6 {[%clk 0:02:58.6]} 5. Nbd2 {[%clk 0:02:57.3]}
5... c6 {[%clk 0:02:53]} 6. Bg2 {[%clk 0:02:54.4]} 6... d5 {[%clk 0:02:53.6]} 7.
b3 {[%clk 0:02:51.6]} 7... Bb4 {[%clk 0:02:51.1]} 8. O-O {[%clk 0:02:45.6]} 8...
O-O {[%clk 0:02:51.1]} 9. Bb2 {[%clk 0:02:45]} 9... Nbd7 {[%clk 0:02:50.5]} 10.
Rc1 {[%clk 0:02:41.6]} 10... Rc8 {[%clk 0:02:49.6]} 11. a3 {[%clk 0:02:28.4]}
11... Bd6 {[%clk 0:02:46.3]} 12. Ne5 {[%clk 0:02:28]} 12... Qe7 {[%clk
0:02:30.9]} 13. b4 {[%clk 0:02:19.2]} 13... dxc4 {[%clk 0:02:29.8]} 14. Ndxc4
{[%clk 0:02:18.5]} 14... Nb8 {[%clk 0:02:03.7]} 15. Qc2 {[%clk 0:02:11]} 15...
Rfd8 {[%clk 0:02:03.1]} 16. Rfd1 {[%clk 0:02:10.5]} 16... c5 {[%clk 0:01:58.8]}
17. Nxd6 {[%clk 0:02:03.9]} 17... Rxd6 {[%clk 0:01:50.3]} 18. dxc5 {[%clk
0:01:44]} 18... Rxd1+ {[%clk 0:01:49.4]} 19. Qxd1 {[%clk 0:01:26.8]} 19... bxc5
{[%clk 0:01:49.4]} 20. bxc5 {[%clk 0:01:26.7]} 20... Rxc5 {[%clk 0:01:42.3]} 21.
Rxc5 {[%clk 0:01:25.8]} 21... Qxc5 {[%clk 0:01:43.2]} 22. Qd8+ {[%clk
0:01:24.7]} 22... Qf8 {[%clk 0:01:43.2]} 23. Qc7 {[%clk 0:01:24.9]} 23... Bxe2
{[%clk 0:01:26.6]} 24. Qxa7 {[%clk 0:01:24.5]} 24... Nd5 {[%clk 0:01:26.3]} 25.
Nd7 {[%clk 0:01:08.1]} 25... Nxd7 {[%clk 0:01:21.9]} 26. Qxd7 {[%clk 0:01:09]}
26... Qb8 {[%clk 0:00:43.4]} 27. Bxd5 {[%clk 0:01:00.3]} 27... exd5 {[%clk
0:00:44.3]} 28. Qxd5 {[%clk 0:00:59.8]} 28... h5 {[%clk 0:00:40.8]} 29. Qe5
{[%clk 0:00:50.1]} 29... Qxe5 {[%clk 0:00:38.8]} 30. Bxe5 {[%clk 0:00:51]} 30...
Kf8 {[%clk 0:00:35.2]} 31. a4 {[%clk 0:00:50.5]} 31... g6 {[%clk 0:00:32.2]} 32.
a5 {[%clk 0:00:45.8]} 32... Ke7 {[%clk 0:00:32.3]} 33. Bc3 {[%clk 0:00:44.5]}
33... Ke6 {[%clk 0:00:31.7]} 34. f3 {[%clk 0:00:44.8]} 34... Bxf3 {[%clk
0:00:26.5]} 35. a6 {[%clk 0:00:44.2]} 35... Kd7 {[%clk 0:00:26.9]} 36. a7 {[%clk
0:00:43.7]} 36... Kc8 {[%clk 0:00:26.9]} 37. Kf2 {[%clk 0:00:42.9]} 37... Bd5
{[%clk 0:00:25.4]} 38. Ke3 {[%clk 0:00:42.5]} 38... Kb7 {[%clk 0:00:26]} 39. Bd4
{[%clk 0:00:41.8]} 39... Be6 {[%clk 0:00:26.1]} 40. Kf4 {[%clk 0:00:41.7]} 40...
Bd5 {[%clk 0:00:26.2]} 41. Ke5 {[%clk 0:00:38.4]} 41... Be6 {[%clk 0:00:26.3]}
42. Kf6 {[%clk 0:00:38.2]} 42... Ka8 {[%clk 0:00:25.3]} 43. Kg5 {[%clk
0:00:36.2]} 43... Kb7 {[%clk 0:00:25.9]} 44. h3 {[%clk 0:00:36.5]} 44... Bxh3
{[%clk 0:00:24]} 45. Kf6 {[%clk 0:00:36.6]} 45... Be6 {[%clk 0:00:24.6]} 46. Kg5
{[%clk 0:00:35.1]} 1/2-1/2

[Event "*** Titled Tuesday Blitz"]
[Site "Chess.com"]
[Date "2020.04.14"]
[Round "1"]
[White "Aleksey_Sorokin"]
[Black "adricalderon8"]
[Result "0-1"]
[WhiteElo "2769"]
[BlackElo "2431"]
[TimeControl "180+1"]
[EndTime "10:06:58 PDT"]
[Termination "adricalderon8 won by resignation"]

1. d4 {[%clk 0:02:58.7]} 1... Nf6 {[%clk 0:02:57.7]} 2. c4 {[%clk 0:02:58.1]}
2... g6 {[%clk 0:02:58.1]} 3. Nc3 {[%clk 0:02:56.9]} 3... d5 {[%clk 0:02:58.2]}
4. cxd5 {[%clk 0:02:56]} 4... Nxd5 {[%clk 0:02:58]} 5. e4 {[%clk 0:02:56.7]}
5... Nxc3 {[%clk 0:02:58.1]} 6. bxc3 {[%clk 0:02:57.6]} 6... Bg7 {[%clk
0:02:58.8]} 7. Nf3 {[%clk 0:02:57.7]} 7... c5 {[%clk 0:02:57.7]} 8. Be3 {[%clk
0:02:56.9]} 8... b6 {[%clk 0:02:57.1]} 9. Bb5+ {[%clk 0:02:53.5]} 9... Nd7
{[%clk 0:02:54.8]} 10. O-O {[%clk 0:02:51.9]} 10... O-O {[%clk 0:02:54.8]} 11.
Bc6 {[%clk 0:02:46.4]} 11... Ba6 {[%clk 0:02:49.8]} 12. Bxa8 {[%clk 0:02:36]}
12... Bxf1 {[%clk 0:02:37.6]} 13. Bc6 {[%clk 0:02:35.4]} 13... Ba6 {[%clk
0:02:37.2]} 14. Qa4 {[%clk 0:02:31.2]} 14... cxd4 {[%clk 0:02:29.2]} 15. cxd4
{[%clk 0:02:21.8]} 15... Nb8 {[%clk 0:02:28.3]} 16. Rc1 {[%clk 0:02:14.7]} 16...
Nxc6 {[%clk 0:02:25.8]} 17. Qxa6 {[%clk 0:02:11.4]} 17... Nxd4 {[%clk
0:02:22.8]} 18. Bxd4 {[%clk 0:02:02.2]} 18... Bxd4 {[%clk 0:02:20.8]} 19. Nxd4
{[%clk 0:02:00.2]} 19... Qxd4 {[%clk 0:02:20.2]} 20. Qxa7 {[%clk 0:02:00.5]}
20... e5 {[%clk 0:02:10.8]} 21. h3 {[%clk 0:01:55.6]} 21... Qb2 {[%clk
0:01:53.2]} 22. Rc7 {[%clk 0:01:49.9]} 22... Qb1+ {[%clk 0:01:51.7]} 23. Kh2
{[%clk 0:01:48.7]} 23... Qxe4 {[%clk 0:01:51.6]} 24. Qxb6 {[%clk 0:01:46.6]}
24... Ra8 {[%clk 0:01:47.5]} 25. Ra7 {[%clk 0:01:42.5]} 25... Rc8 {[%clk
0:01:37.8]} 26. a4 {[%clk 0:01:35.3]} 26... Kg7 {[%clk 0:01:34.7]} 27. a5 {[%clk
0:01:13.8]} 27... Rc6 {[%clk 0:01:30.8]} 28. Qb2 {[%clk 0:01:00]} 28... Rc2
{[%clk 0:01:27.1]} 29. Qb3 {[%clk 0:00:39]} 29... Qf4+ {[%clk 0:01:18.5]} 30.
Qg3 {[%clk 0:00:37.8]} 30... Rxf2 {[%clk 0:01:18.2]} 31. Qxf4 {[%clk 0:00:34.1]}
31... exf4 {[%clk 0:01:18.4]} 32. a6 {[%clk 0:00:29.2]} 32... Ra2 {[%clk
0:01:16.3]} 33. Kg1 {[%clk 0:00:28]} 33... h5 {[%clk 0:01:16.4]} 34. Kf1 {[%clk
0:00:25.9]} 34... g5 {[%clk 0:01:16.3]} 35. Ra8 {[%clk 0:00:24.3]} 35... Kf6
{[%clk 0:01:16.3]} 36. a7 {[%clk 0:00:22.7]} 36... Kf5 {[%clk 0:01:16.1]} 37.
Kg1 {[%clk 0:00:22]} 37... g4 {[%clk 0:01:05.1]} 38. Rh8 {[%clk 0:00:19.8]}
38... Ra1+ {[%clk 0:00:54.9]} 39. Kf2 {[%clk 0:00:19.5]} 39... g3+ {[%clk
0:00:55.1]} 40. Kf3 {[%clk 0:00:19.3]} 40... Ra3+ {[%clk 0:00:55.4]} 41. Ke2
{[%clk 0:00:19.2]} 41... Rxa7 {[%clk 0:00:55]} 42. Rxh5+ {[%clk 0:00:19]} 42...
Ke4 {[%clk 0:00:55.3]} 43. Rh8 {[%clk 0:00:17.8]} 43... Ra2+ {[%clk 0:00:54.7]}
44. Kf1 {[%clk 0:00:17.7]} 44... f3 {[%clk 0:00:54.6]} 45. Re8+ {[%clk
0:00:14.5]} 45... Kf4 {[%clk 0:00:54.6]} 46. gxf3 {[%clk 0:00:14.6]} 46... Kxf3
{[%clk 0:00:54.4]} 47. Re1 {[%clk 0:00:14.3]} 47... f5 {[%clk 0:00:50.5]} 48.
Kg1 {[%clk 0:00:14.3]} 48... f4 {[%clk 0:00:49.3]} 0-1

[Event "*** Titled Tuesday Blitz"]
[Site "Chess.com"]
[Date "2020.04.14"]
[Round "1"]
[White "Triumphmate"]
[Black "ClockworkKubrick"]
[Result "1-0"]
[WhiteElo "2596"]
[BlackElo "2218"]
[TimeControl "180+1"]
[EndTime "10:07:00 PDT"]
[Termination "Triumphmate won by resignation"]

1. e4 {[%clk 0:03:00.5]} 1... d6 {[%clk 0:03:00.2]} 2. Nf3 {[%clk 0:03:01.4]}
2... Nf6 {[%clk 0:03:00.3]} 3. Nc3 {[%clk 0:02:59.1]} 3... g6 {[%clk 0:03:00.7]}
4. d4 {[%clk 0:03:00]} 4... Bg7 {[%clk 0:03:00.8]} 5. Bd3 {[%clk 0:02:52.8]}
5... O-O {[%clk 0:03:00.8]} 6. Be3 {[%clk 0:02:53.7]} 6... c6 {[%clk 0:02:59.1]}
7. Qd2 {[%clk 0:02:52.9]} 7... Nbd7 {[%clk 0:02:58.7]} 8. O-O-O {[%clk 0:02:46]}
8... e5 {[%clk 0:02:58.5]} 9. dxe5 {[%clk 0:02:44.7]} 9... dxe5 {[%clk
0:02:58.1]} 10. h4 {[%clk 0:02:45.1]} 10... h5 {[%clk 0:02:55.9]} 11. Bh6 {[%clk
0:02:41.6]} 11... Qa5 {[%clk 0:02:55.2]} 12. Bxg7 {[%clk 0:02:41.6]} 12... Kxg7
{[%clk 0:02:55.5]} 13. Kb1 {[%clk 0:02:41.6]} 13... b5 {[%clk 0:02:53.6]} 14.
Ng5 {[%clk 0:02:32.7]} 14... Rb8 {[%clk 0:02:35.2]} 15. f3 {[%clk 0:02:24.6]}
15... b4 {[%clk 0:02:30.2]} 16. Ne2 {[%clk 0:02:17.3]} 16... Nb6 {[%clk
0:02:30]} 17. g4 {[%clk 0:02:04.4]} 17... Na4 {[%clk 0:02:28.6]} 18. Ka1 {[%clk
0:01:53.5]} 18... Ba6 {[%clk 0:02:17.3]} 19. gxh5 {[%clk 0:01:45.3]} 19... Nxh5
{[%clk 0:02:16.6]} 20. Bxa6 {[%clk 0:01:36.4]} 20... Qxa6 {[%clk 0:02:16]} 21.
Qd7 {[%clk 0:01:36.1]} 21... Nc5 {[%clk 0:01:56.1]} 22. Qe7 {[%clk 0:01:31.9]}
22... Rb5 {[%clk 0:01:43.3]} 23. Qxe5+ {[%clk 0:01:14.3]} 23... Kg8 {[%clk
0:01:42.7]} 24. Nxf7 {[%clk 0:01:00.7]} 24... Ra5 {[%clk 0:01:22.1]} 25. Nh6+
{[%clk 0:00:22.9]} 25... Kh7 {[%clk 0:01:20.4]} 26. Qe7+ {[%clk 0:00:22.5]}
26... Ng7 {[%clk 0:01:08.6]} 27. Nc1 {[%clk 0:00:21.4]} 27... b3 {[%clk
0:01:05.2]} 28. cxb3 {[%clk 0:00:13.5]} 28... Nxb3+ {[%clk 0:01:04.8]} 29. Nxb3
{[%clk 0:00:13.6]} 29... Rxa2+ {[%clk 0:01:04.4]} 30. Kb1 {[%clk 0:00:14.2]}
30... Re8 {[%clk 0:00:44.3]} 31. Qf7 {[%clk 0:00:12.9]} 31... Kxh6 {[%clk
0:00:41]} 32. Rd7 {[%clk 0:00:12.9]} 32... Rg8 {[%clk 0:00:40.6]} 33. Qxg8
{[%clk 0:00:12.9]} 33... Qd3+ {[%clk 0:00:24.3]} 34. Rxd3 {[%clk 0:00:11.1]} 1-0

[Event "*** Titled Tuesday Blitz"]
[Site "Chess.com"]
[Date "2020.04.14"]
[Round "1"]
[White "Fh2411"]
[Black "AlessiaSanteramo"]
[Result "1-0"]
[WhiteElo "2534"]
[BlackElo "2054"]
[TimeControl "180+1"]
[EndTime "10:07:01 PDT"]
[Termination "Fh2411 won on time"]

1. d4 {[%clk 0:02:58.4]} 1... Nf6 {[%clk 0:02:57]} 2. Nf3 {[%clk 0:02:58]} 2...
e6 {[%clk 0:02:53.9]} 3. c4 {[%clk 0:02:56.2]} 3... d5 {[%clk 0:02:49.2]} 4. Nc3
{[%clk 0:02:55.7]} 4... dxc4 {[%clk 0:02:48.8]} 5. e3 {[%clk 0:02:50.9]} 5... a6
{[%clk 0:02:47.4]} 6. a4 {[%clk 0:02:50.7]} 6... Nbd7 {[%clk 0:02:28.5]} 7. Bxc4
{[%clk 0:02:49.5]} 7... c5 {[%clk 0:02:28.7]} 8. O-O {[%clk 0:02:45.6]} 8... Be7
{[%clk 0:02:22.9]} 9. Qe2 {[%clk 0:02:17.7]} 9... O-O {[%clk 0:02:22]} 10. Rd1
{[%clk 0:02:17.1]} 10... Qc7 {[%clk 0:02:17.4]} 11. h3 {[%clk 0:01:49.7]} 11...
cxd4 {[%clk 0:02:03.3]} 12. exd4 {[%clk 0:01:45.3]} 12... Nb6 {[%clk 0:01:57.3]}
13. Bb3 {[%clk 0:01:43.6]} 13... Rd8 {[%clk 0:01:54.1]} 14. Bg5 {[%clk
0:01:39.2]} 14... Nfd5 {[%clk 0:01:48.8]} 15. a5 {[%clk 0:01:25.9]} 15... Nxc3
{[%clk 0:01:45.8]} 16. bxc3 {[%clk 0:01:26.3]} 16... Nd5 {[%clk 0:01:44.8]} 17.
Bxd5 {[%clk 0:01:22]} 17... Rxd5 {[%clk 0:01:44.2]} 18. Bxe7 {[%clk 0:01:22.2]}
18... Qxe7 {[%clk 0:01:43.3]} 19. c4 {[%clk 0:01:22.6]} 19... Rf5 {[%clk
0:01:31.5]} 20. d5 {[%clk 0:01:14.5]} 20... e5 {[%clk 0:01:31.7]} 21. Qe3 {[%clk
0:00:58.3]} 21... h6 {[%clk 0:01:22.5]} 22. c5 {[%clk 0:00:55.6]} 22... e4
{[%clk 0:00:51.6]} 23. Nh2 {[%clk 0:00:53.3]} 23... Rg5 {[%clk 0:00:49.8]} 24.
Kh1 {[%clk 0:00:53.2]} 24... Qf6 {[%clk 0:00:38.6]} 25. Rac1 {[%clk 0:00:48.9]}
25... Bf5 {[%clk 0:00:35.3]} 26. Nf1 {[%clk 0:00:45.6]} 26... Rd8 {[%clk
0:00:16.7]} 27. Ng3 {[%clk 0:00:42]} 27... Bg6 {[%clk 0:00:17.2]} 28. d6 {[%clk
0:00:41.5]} 28... Qe5 {[%clk 0:00:13.5]} 29. Rd4 {[%clk 0:00:39.4]} 29... f5
{[%clk 0:00:13.7]} 30. Ne2 {[%clk 0:00:37.9]} 30... Rf8 {[%clk 0:00:11.8]} 31.
Nf4 {[%clk 0:00:36.9]} 31... Be8 {[%clk 0:00:12.2]} 32. d7 {[%clk 0:00:33.8]}
32... Bxd7 {[%clk 0:00:12.6]} 33. Rxd7 {[%clk 0:00:33.3]} 33... Qf6 {[%clk
0:00:01.9]} 34. Rb1 {[%clk 0:00:29.9]} 34... Kh7 {[%clk 0:00:01.2]} 35. Rbxb7
{[%clk 0:00:28.6]} 1-0

[Event "*** Titled Tuesday Blitz"]
[Site "Chess.com"]
[Date "2020.04.14"]
[Round "1"]
[White "Vamostodorecto"]
[Black "LiemLe"]
[Result "0-1"]
[WhiteElo "2502"]
[BlackElo "3006"]
[TimeControl "180+1"]
[EndTime "10:07:04 PDT"]
[Termination "LiemLe won on time"]

1. d4 {[%clk 0:03:00.9]} 1... Nf6 {[%clk 0:02:59.6]} 2. c4 {[%clk 0:03:00.9]}
2... e6 {[%clk 0:03:00.1]} 3. Nc3 {[%clk 0:03:00.8]} 3... Bb4 {[%clk 0:02:59.9]}
4. Nf3 {[%clk 0:03:01]} 4... b6 {[%clk 0:02:59.2]} 5. e3 {[%clk 0:02:58.4]} 5...
Bb7 {[%clk 0:02:59.2]} 6. Bd3 {[%clk 0:02:57.7]} 6... O-O {[%clk 0:02:59.4]} 7.
O-O {[%clk 0:02:54]} 7... c5 {[%clk 0:02:59.9]} 8. Qc2 {[%clk 0:02:45.9]} 8...
cxd4 {[%clk 0:02:43]} 9. Nxd4 {[%clk 0:02:42.2]} 9... Nc6 {[%clk 0:02:42.1]} 10.
a3 {[%clk 0:02:34.1]} 10... Be7 {[%clk 0:02:29.4]} 11. b4 {[%clk 0:02:30]} 11...
Rc8 {[%clk 0:02:28.2]} 12. Bb2 {[%clk 0:02:26.4]} 12... Ne5 {[%clk 0:02:27.9]}
13. Nce2 {[%clk 0:02:06.4]} 13... Nxc4 {[%clk 0:02:27.5]} 14. Bc3 {[%clk
0:01:39.2]} 14... d5 {[%clk 0:02:16.4]} 15. Ng3 {[%clk 0:01:20.2]} 15... Qc7
{[%clk 0:01:58.9]} 16. Rfc1 {[%clk 0:01:08.3]} 16... Qb8 {[%clk 0:01:51.3]} 17.
Qe2 {[%clk 0:01:07.4]} 17... Rfd8 {[%clk 0:01:40.9]} 18. h3 {[%clk 0:01:01]}
18... Ne5 {[%clk 0:01:29.2]} 19. Bb1 {[%clk 0:00:46.6]} 19... Ne4 {[%clk
0:01:17.7]} 20. Nxe4 {[%clk 0:00:40.4]} 20... dxe4 {[%clk 0:01:18.6]} 21. Ra2
{[%clk 0:00:31.6]} 21... Nd3 {[%clk 0:01:13.1]} 22. Bxd3 {[%clk 0:00:28.7]}
22... exd3 {[%clk 0:01:14]} 23. Qg4 {[%clk 0:00:16.1]} 23... Bf6 {[%clk
0:01:07.5]} 24. Rd2 {[%clk 0:00:13.2]} 24... g6 {[%clk 0:00:55.5]} 25. Rxd3
{[%clk 0:00:12.7]} 25... e5 {[%clk 0:00:55.6]} 26. Rcd1 {[%clk 0:00:04]} 26...
exd4 {[%clk 0:00:54.9]} 27. Bxd4 {[%clk 0:00:04.6]} 27... Bxd4 {[%clk
0:00:52.6]} 28. Rxd4 {[%clk 0:00:05.5]} 28... Rxd4 {[%clk 0:00:52.8]} 29. Rxd4
{[%clk 0:00:05.9]} 29... Rc1+ {[%clk 0:00:50.6]} 30. Rd1 {[%clk 0:00:06.5]}
30... h5 {[%clk 0:00:46.9]} 31. Qe2 {[%clk 0:00:03.7]} 31... Qc7 {[%clk
0:00:46.2]} 32. Qd2 {[%clk 0:00:02.9]} 32... Rxd1+ {[%clk 0:00:43]} 33. Qxd1
{[%clk 0:00:03.8]} 33... Qc6 {[%clk 0:00:41.7]} 34. f3 {[%clk 0:00:02.3]} 34...
Qc3 {[%clk 0:00:41.1]} 35. Qd8+ {[%clk 0:00:02]} 35... Kg7 {[%clk 0:00:41]} 36.
Qg5 {[%clk 0:00:02.5]} 36... Bc8 {[%clk 0:00:35.2]} 0-1

[Event "*** Titled Tuesday Blitz"]
[Site "Chess.com"]
[Date "2020.04.14"]
[Round "1"]
[White "ApacheSVD"]
[Black "Bulldog167"]
[Result "0-1"]
[WhiteElo "2385"]
[BlackElo "2742"]
[TimeControl "180+1"]
[EndTime "10:07:04 PDT"]
[Termination "Bulldog167 won by resignation"]

1. e4 {[%clk 0:02:55.7]} 1... e6 {[%clk 0:02:58.5]} 2. d4 {[%clk 0:02:48.5]}
2... d5 {[%clk 0:02:58.4]} 3. Nd2 {[%clk 0:02:45.7]} 3... c5 {[%clk 0:02:57.9]}
4. exd5 {[%clk 0:02:44.6]} 4... Qxd5 {[%clk 0:02:58.8]} 5. Ngf3 {[%clk
0:02:44.4]} 5... cxd4 {[%clk 0:02:59.1]} 6. Bc4 {[%clk 0:02:44.6]} 6... Qd7
{[%clk 0:02:59.6]} 7. O-O {[%clk 0:02:44.5]} 7... Nc6 {[%clk 0:02:59.8]} 8. Nb3
{[%clk 0:02:44]} 8... a6 {[%clk 0:02:59.9]} 9. a4 {[%clk 0:02:42.3]} 9... Nf6
{[%clk 0:02:58]} 10. Nbxd4 {[%clk 0:02:41.7]} 10... Nxd4 {[%clk 0:02:57.6]} 11.
Qxd4 {[%clk 0:02:41.4]} 11... Qxd4 {[%clk 0:02:57.2]} 12. Nxd4 {[%clk
0:02:42.3]} 12... Bc5 {[%clk 0:02:56.5]} 13. Nf3 {[%clk 0:02:19.7]} 13... b6
{[%clk 0:02:50.5]} 14. c3 {[%clk 0:02:06.3]} 14... Bb7 {[%clk 0:02:49.4]} 15.
Ne5 {[%clk 0:02:01]} 15... O-O {[%clk 0:02:40.7]} 16. Bg5 {[%clk 0:01:54.6]}
16... Rad8 {[%clk 0:02:31.9]} 17. Rad1 {[%clk 0:01:50.9]} 17... Bxf2+ {[%clk
0:02:13.3]} 18. Kxf2 {[%clk 0:01:34.2]} 18... Ne4+ {[%clk 0:02:13.5]} 19. Kg1
{[%clk 0:01:32.5]} 19... Nxg5 {[%clk 0:02:14.4]} 20. Rxd8 {[%clk 0:01:20]} 20...
Rxd8 {[%clk 0:02:12.7]} 21. h4 {[%clk 0:01:20.4]} 21... Rd2 {[%clk 0:01:50.7]}
22. hxg5 {[%clk 0:01:12.1]} 22... Rxg2+ {[%clk 0:01:50.9]} 23. Kh1 {[%clk
0:01:12.6]} 23... Rxb2+ {[%clk 0:01:39]} 24. Nf3 {[%clk 0:00:50.1]} 24... Rc2
{[%clk 0:01:38]} 25. Kg1 {[%clk 0:00:29.4]} 25... Rxc3 {[%clk 0:01:36.7]} 26.
Be2 {[%clk 0:00:27.8]} 26... Rc5 {[%clk 0:01:30.9]} 27. Rb1 {[%clk 0:00:19.2]}
27... Bxf3 {[%clk 0:01:30.5]} 28. Rxb6 {[%clk 0:00:10.4]} 28... g6 {[%clk
0:01:07.5]} 29. Bxf3 {[%clk 0:00:10.4]} 29... Rxg5+ {[%clk 0:01:08]} 30. Kf2
{[%clk 0:00:10.8]} 30... Ra5 {[%clk 0:01:08.2]} 31. Bd1 {[%clk 0:00:10.7]} 31...
h5 {[%clk 0:01:06.8]} 32. Ke3 {[%clk 0:00:07]} 32... Kg7 {[%clk 0:01:06.3]} 33.
Kd3 {[%clk 0:00:05.3]} 33... h4 {[%clk 0:01:06.2]} 34. Ke3 {[%clk 0:00:04]}
34... h3 {[%clk 0:01:01.2]} 35. Kf2 {[%clk 0:00:02.2]} 35... Rg5 {[%clk
0:00:47.7]} 36. Be2 {[%clk 0:00:01.1]} 36... h2 {[%clk 0:00:47]} 37. Bf3 {[%clk
0:00:01.8]} 37... Rf5 {[%clk 0:00:46.9]} 38. Kg2 {[%clk 0:00:02.3]} 38... Rxf3
{[%clk 0:00:46.7]} 39. Kh1 {[%clk 0:00:03.2]} 39... Rf2 {[%clk 0:00:44.7]} 40.
Rxa6 {[%clk 0:00:02.5]} 40... g5 {[%clk 0:00:43.5]} 41. Ra5 {[%clk 0:00:02.5]}
41... Kg6 {[%clk 0:00:41.2]} 0-1